fUSD/lending_fUSD_20250720
["ID","MTS","AMOUNT","RATE_DAILY","PERIOD"]
[373460454,1753015852392,-480.0,0.00019178,2]
[373460455,1753015852402,-480.0,0.00019178,2]
[373460456,1753015852411,-674.99,0.00019178,2]
[373460457,1753015852420,-480.0,0.00019178,2]
[373460458,1753015852429,-480.0,0.00019178,2]
[373460459,1753015852439,-2340.65,0.00019178,2]
[373460460,1753015852449,-480.0,0.00019178,2]
[373460461,1753015852458,-6871.72,0.00019178,2]
[373460462,1753015852467,-480.0,0.00019178,2]
[373460463,1753015852477,-480.0,0.00019178,2]
[373460464,1753015852486,-798.23,0.00019178,2]
[373460465,1753015852495,-1748.11,0.00019178,2]
[373460466,1753015852505,-480.0,0.00019178,2]
[373460467,1753015852514,-895.08,0.00019178,2]
[373460468,1753015852523,-480.0,0.00019178,2]
[373460469,1753015852533,-900.25,0.00019178,2]
[373460470,1753015852542,-440.0,0.00019178,2]
[373460471,1753015852552,-2536.27,0.00019178,2]
[373460472,1753015852561,-1367.68,0.00019178,2]
[373460473,1753015852571,-480.0,0.00019178,2]
[373460474,1753015852581,-480.0,0.00019178,2]
[373460475,1753015852590,-480.0,0.00019178,2]
[373460476,1753015852600,-2346.21,0.00019178,2]
[373460477,1753015852609,-2545.2,0.00019178,2]
[373460478,1753015852619,-554.81,0.00019178,2]
[373460479,1753015852628,-555.34,0.00019178,2]
[373460480,1753015852704,-2667.21,0.00019178,2]
[373460481,1753015852713,-480.0,0.00019178,2]
[373460482,1753015852723,-659.61,0.00019178,2]
[373460483,1753015852732,-480.0,0.00019178,2]
[373460484,1753015852742,-480.0,0.00019178,2]
[373460485,1753015852751,-480.0,0.00019178,2]
[373460486,1753015852760,-1686.45,0.00019178,2]
[373460487,1753015852770,-1851.34,0.00019178,2]
[373460488,1753015852779,-480.0,0.00019178,2]
[373460489,1753015852789,-480.0,0.00019178,2]
[373460490,1753015852798,-489.84,0.00019178,2]
[373460491,1753015852808,-403.31459065,0.00019178,2]
[373460492,1753015852817,-2623.31,0.00019178,2]
[373460493,1753015852827,-480.0,0.00019178,2]
[373460494,1753015852836,-480.0,0.00019178,2]
[373460495,1753015852846,-470.99298293,0.00019178,2]
[373460496,1753015852855,-541.04,0.00019178,2]
[373460497,1753015852865,-480.0,0.00019178,2]
[373460498,1753015852875,-480.0,0.00019178,2]
[373460499,1753015852884,-480.0,0.00019178,2]
[373460500,1753015852894,-480.0,0.00019178,2]
[373460501,1753015852904,-480.0,0.00019178,2]
[373460502,1753015852913,-480.0,0.00019178,2]
[373460503,1753015852923,-480.0,0.00019178,2]
[373460504,1753015852932,-735.93,0.00019178,2]
[373460505,1753015852942,-151.0,0.00019178,2]
[373460506,1753015852953,-163.56,0.00019178,2]
[373460507,1753015852963,-4286.87,0.00019178,2]
[373460508,1753015852971,-80.24933067,0.00019178,2]
[373460509,1753015853007,-480.0,0.00019178,2]
[373460510,1753015853017,-480.0,0.00019178,2]
[373460511,1753015853027,-72.22066933,0.00019178,2]
[373460512,1753015853036,-158.39269059,0.0001918,2]
[373460513,1753015853047,-157.65081248,0.00019187,2]
[373460514,1753015853057,-356.58328064,0.00019187,2]
[373460515,1753015853067,-995.2549859,0.00019187,2]
[373460516,1753015853076,-287.6166,0.00019187,2]
[373460517,1753015853086,-500.0,0.00019196,2]
[373460518,1753015853096,-500.0,0.00019196,2]
[373460519,1753015853106,-138.62807058,0.00019196,2]
[373460520,1753015853127,-361.37192942,0.00019196,2]
[373460521,1753015853136,-298.55161716,0.00019196,2]
[373460522,1753015853146,-500.0,0.00019196,2]
[373460523,1753015853156,-500.0,0.00019196,2]
[373460524,1753015853165,-500.0,0.00019196,2]
[373460525,1753015853175,-500.0,0.00019196,2]
[373460526,1753015853184,-500.0,0.00019196,2]
[373460527,1753015853194,-500.0,0.00019196,2]
[373460528,1753015853204,-500.0,0.00019196,2]
[373460529,1753015853214,-500.0,0.00019196,2]
[373460530,1753015853225,-500.0,0.00019196,2]
[373460531,1753015853235,-500.0,0.00019196,2]
[373460532,1753015853245,-500.0,0.00019196,2]
[373460533,1753015853257,-500.0,0.00019196,2]
[373460534,1753015853266,-49.71591493,0.00019196,2]
[373460535,1753015853559,-480.0,0.00019178,2]
[373460536,1753015853568,-480.0,0.00019178,2]
[373460537,1753015853578,-450.28408507,0.00019196,2]
[373460538,1753015853587,-500.0,0.00019196,2]
[373460539,1753015853597,-500.0,0.00019196,2]
[373460540,1753015853606,-500.0,0.00019196,2]
[373460541,1753015853616,-440.0,0.00019196,2]
[373460542,1753015853625,-500.0,0.00019196,2]
[373460543,1753015853634,-500.0,0.00019196,2]
[373460544,1753015853644,-500.0,0.00019196,2]
[373460545,1753015853653,-500.0,0.00019196,2]
[373460546,1753015853662,-500.0,0.00019196,2]
[373460547,1753015853671,-2000.0,0.00019196,2]
[373460548,1753015853679,-2000.0,0.00019196,2]
[373460549,1753015853689,-721.30704882,0.00019196,2]
[373460550,1753015853698,-500.0,0.00019196,2]
[373460551,1753015853707,-500.0,0.00019196,2]
[373460552,1753015853720,-500.0,0.00019196,2]
[373460553,1753015853730,-500.0,0.00019196,2]
[373460554,1753015853739,-500.0,0.00019196,2]
[373460555,1753015853749,-500.0,0.00019196,2]
[373460556,1753015853758,-500.0,0.00019196,2]
[373460557,1753015853767,-500.0,0.00019196,2]
[373460558,1753015853779,-12008.65657808,0.00019197,2]
[373460559,1753015853788,-2590.67,0.000192,2]
[373460560,1753015853798,-815.42,0.000192,2]
[373460561,1753015853808,-1629.83,0.000192,2]
[373460562,1753015853818,-168.46983422,0.00019212,2]
[373460563,1753015853828,-864.86770672,0.00019212,2]
[373460564,1753015853838,-500.0,0.00019273,2]
[373460565,1753015853846,-500.0,0.00019273,2]
[373460566,1753015853854,-500.0,0.00019273,2]
[373460567,1753015853862,-500.0,0.00019273,2]
[373460568,1753015853871,-500.0,0.00019273,2]
[373460569,1753015853880,-502.86195144,0.00019273,2]
[373460570,1753015853889,-165.59987179,0.00019277,2]
[373460571,1753015853899,-500.0,0.00019286,2]
[373460572,1753015853908,-500.0,0.00019286,2]
[373460573,1753015853917,-500.0,0.00019286,2]
[373460574,1753015853926,-322.64691205,0.00019286,2]
[373460575,1753015853936,-500.0,0.00019286,2]
[373460576,1753015853946,-500.0,0.00019286,2]
[373460577,1753015853955,-500.0,0.00019286,2]
[373460578,1753015853963,-500.0,0.00019286,2]
[373460579,1753015853973,-500.0,0.00019286,2]
[373460580,1753015853982,-500.0,0.00019286,2]
[373460581,1753015853992,-2100.0,0.00019286,2]
[373460582,1753015854001,-480.0,0.00019287,2]
[373460583,1753015854009,-480.0,0.00019287,2]
[373460584,1753015854018,-420.0,0.00019287,2]
[373460585,1753015854026,-480.0,0.00019287,2]
[373460586,1753015854034,-1000.0,0.00019287,2]
[373460587,1753015854044,-480.0,0.00019287,2]
[373460588,1753015854053,-480.0,0.00019287,2]
[373460589,1753015854062,-480.0,0.00019287,2]
[373460590,1753015854071,-306.0,0.00019287,2]
[373460591,1753015854082,-480.0,0.00019287,2]
[373460592,1753015854091,-480.0,0.00019287,2]
[373460593,1753015854101,-480.0,0.00019287,2]
[373460594,1753015854110,-480.0,0.00019287,2]
[373460595,1753015854119,-480.0,0.00019287,2]
[373460596,1753015854127,-480.0,0.00019287,2]
[373460597,1753015854136,-516.45,0.00019287,2]
[373460598,1753015854146,-480.0,0.00019287,2]
[373460599,1753015854155,-480.0,0.00019287,2]
[373460600,1753015854164,-480.0,0.00019287,2]
[373460601,1753015854173,-480.0,0.00019287,2]
[373460602,1753015854182,-423.24,0.00019287,2]
[373460603,1753015854191,-480.0,0.00019287,2]
[373460604,1753015854200,-480.0,0.00019287,2]
[373460605,1753015854210,-480.0,0.00019287,2]
[373460606,1753015854220,-480.0,0.00019287,2]
[373460607,1753015854232,-480.0,0.00019287,2]
[373460608,1753015854242,-480.0,0.00019287,2]
[373460609,1753015854252,-480.0,0.00019287,2]
[373460610,1753015854261,-480.0,0.00019287,2]
[373460611,1753015854272,-2935.31,0.00019287,2]
[373460612,1753015854282,-480.0,0.00019287,2]
[373460613,1753015854291,-480.0,0.00019287,2]
[373460614,1753015854301,-480.0,0.00019287,2]
[373460615,1753015854311,-480.0,0.00019287,2]
[373460616,1753015854320,-729.6,0.00019287,2]
[373460617,1753015854330,-383.6,0.00019287,2]
[373460618,1753015854340,-204.96,0.00019287,2]
[373460619,1753015854350,-1751.73,0.00019287,2]
[373460620,1753015854360,-480.0,0.00019287,2]
[373460621,1753015854369,-480.0,0.00019287,2]
[373460622,1753015854378,-480.0,0.00019287,2]
[373460623,1753015854387,-620.59,0.00019287,2]
[373460624,1753015854397,-480.0,0.00019287,2]
[373460625,1753015854407,-480.0,0.00019287,2]
[373460626,1753015854416,-530.08,0.00019287,2]
[373460627,1753015854427,-617.98,0.00019287,2]
[373460628,1753015854436,-480.0,0.00019287,2]
[373460629,1753015854448,-480.0,0.00019287,2]
[373460630,1753015854457,-525.56,0.00019287,2]
[373460631,1753015854466,-480.0,0.00019287,2]
[373460632,1753015854476,-480.0,0.00019287,2]
[373460633,1753015854485,-431.95895244,0.00019287,2]
[373460634,1753015854494,-795.82,0.00019287,2]
[373460635,1753015854503,-480.0,0.00019287,2]
[373460636,1753015854512,-480.0,0.00019287,2]
[373460637,1753015854522,-480.0,0.00019287,2]
[373460638,1753015854532,-480.0,0.00019287,2]
[373460639,1753015854543,-488.1,0.00019287,2]
[373460640,1753015854553,-637.77,0.00019287,2]
[373460641,1753015854563,-595.95,0.00019287,2]
[373460642,1753015854572,-659.44,0.00019287,2]
[373460643,1753015854582,-480.0,0.00019287,2]
[373460644,1753015854591,-480.0,0.00019287,2]
[373460645,1753015854601,-480.0,0.00019287,2]
[373460646,1753015854610,-480.0,0.00019287,2]
[373460647,1753015854621,-480.0,0.00019287,2]
[373460648,1753015854631,-480.0,0.00019287,2]
[373460649,1753015854641,-480.0,0.00019287,2]
[373460650,1753015854651,-480.0,0.00019287,2]
[373460651,1753015854661,-480.0,0.00019287,2]
[373460652,1753015854671,-480.0,0.00019287,2]
[373460653,1753015854680,-728.61,0.00019287,2]
[373460654,1753015854690,-480.0,0.00019287,2]
[373460655,1753015854699,-581.11,0.00019287,2]
[373460656,1753015854709,-615.08,0.00019287,2]
[373460657,1753015854719,-480.0,0.00019287,2]
[373460658,1753015854728,-723.32,0.00019287,2]
[373460659,1753015854738,-563.76,0.00019287,2]
[373460660,1753015854747,-572.16,0.00019287,2]
[373460661,1753015854756,-480.0,0.00019287,2]
[373460662,1753015854765,-480.0,0.00019287,2]
[373460663,1753015854776,-480.0,0.00019287,2]
[373460664,1753015854786,-480.0,0.00019287,2]
[373460665,1753015854795,-811.38,0.00019287,2]
[373460666,1753015854804,-480.0,0.00019287,2]
[373460667,1753015854814,-480.0,0.00019287,2]
[373460668,1753015854824,-403.57630567,0.00019287,2]
[373460669,1753015854833,-524.88,0.00019287,2]
[373460670,1753015854842,-480.0,0.00019287,2]
[373460671,1753015854852,-860.27,0.00019287,2]
[373460672,1753015854861,-480.0,0.00019287,2]
[373460673,1753015854871,-480.0,0.00019287,2]
[373460674,1753015854881,-480.0,0.00019287,2]
[373460675,1753015854890,-480.0,0.00019287,2]
[373460676,1753015854899,-574.46,0.00019287,2]
[373460677,1753015854909,-480.0,0.00019287,2]
[373460678,1753015854918,-503.91,0.00019287,2]
[373460679,1753015854927,-480.93,0.00019287,2]
[373460680,1753015854937,-480.0,0.00019287,2]
[373460681,1753015854946,-480.0,0.00019287,2]
[373460682,1753015854956,-502.88,0.00019287,2]
[373460683,1753015854965,-480.0,0.00019287,2]
[373460684,1753015854975,-620.06,0.00019287,2]
[373460685,1753015854984,-480.0,0.00019287,2]
[373460686,1753015854994,-480.0,0.00019287,2]
[373460687,1753015855004,-480.0,0.00019287,2]
[373460688,1753015855013,-480.0,0.00019287,2]
[373460689,1753015855022,-480.0,0.00019287,2]
[373460690,1753015855031,-480.0,0.00019287,2]
[373460691,1753015855040,-480.0,0.00019287,2]
[373460692,1753015855050,-480.0,0.00019287,2]
[373460693,1753015855059,-480.0,0.00019287,2]
[373460694,1753015855069,-480.0,0.00019287,2]
[373460695,1753015855080,-480.0,0.00019287,2]
[373460696,1753015855090,-309.87,0.00019287,2]
[373460697,1753015855099,-480.0,0.00019287,2]
[373460698,1753015855108,-480.0,0.00019287,2]
[373460699,1753015855119,-480.0,0.00019287,2]
[373460700,1753015855128,-480.0,0.00019287,2]
[373460701,1753015855138,-653.53,0.00019287,2]
[373460702,1753015855147,-819.08,0.00019287,2]
[373460703,1753015855157,-812.61,0.00019287,2]
[373460704,1753015855167,-480.0,0.00019287,2]
[373460705,1753015855178,-757.46,0.00019287,2]
[373460706,1753015855189,-329.76,0.00019287,2]
[373460707,1753015855199,-726.55,0.00019287,2]
[373460708,1753015855211,-480.0,0.00019287,2]
[373460709,1753015855223,-480.0,0.00019287,2]
[373460710,1753015855234,-480.0,0.00019287,2]
[373460711,1753015855243,-483.43,0.00019287,2]
[373460712,1753015855253,-480.0,0.00019287,2]
[373460713,1753015855264,-480.0,0.00019287,2]
[373460714,1753015855274,-480.0,0.00019287,2]
[373460715,1753015855283,-752.87,0.00019287,2]
[373460716,1753015855294,-480.0,0.00019287,2]
[373460717,1753015855304,-1442.66,0.00019287,2]
[373460718,1753015855314,-480.0,0.00019287,2]
[373460719,1753015855324,-480.0,0.00019287,2]
[373460720,1753015855335,-480.0,0.00019287,2]
[373460721,1753015855347,-480.0,0.00019287,2]
[373460722,1753015855357,-480.0,0.00019287,2]
[373460723,1753015855367,-480.0,0.00019287,2]
[373460724,1753015855378,-480.0,0.00019287,2]
[373460725,1753015855388,-480.0,0.00019287,2]
[373460726,1753015855398,-480.0,0.00019287,2]
[373460727,1753015855407,-525.61,0.00019287,2]
[373460728,1753015855417,-837.57,0.00019287,2]
[373460729,1753015855427,-480.0,0.00019287,2]
[373460730,1753015855436,-480.0,0.00019287,2]
[373460731,1753015855446,-480.0,0.00019287,2]
[373460732,1753015855456,-556.79,0.00019287,2]
[373460733,1753015855467,-904.39,0.00019287,2]
[373460734,1753015855477,-845.86,0.00019287,2]
[373460735,1753015855488,-480.0,0.00019287,2]
[373460736,1753015855498,-480.0,0.00019287,2]
[373460737,1753015855508,-480.0,0.00019287,2]
[373460738,1753015855518,-520.0,0.00019287,2]
[373460739,1753015855527,-480.0,0.00019287,2]
[373460740,1753015855537,-480.0,0.00019287,2]
[373460741,1753015855547,-480.0,0.00019287,2]
[373460742,1753015855556,-480.0,0.00019287,2]
[373460743,1753015855566,-553.43896001,0.00019287,2]
[373460744,1753015855576,-480.0,0.00019287,2]
[373460745,1753015855586,-570.72,0.00019287,2]
[373460746,1753015855595,-480.0,0.00019287,2]
[373460747,1753015855605,-480.0,0.00019287,2]
[373460748,1753015855615,-421.30084983,0.00019287,2]
[373460749,1753015855625,-677.24,0.00019287,2]
[373460750,1753015855635,-480.0,0.00019287,2]
[373460751,1753015855644,-480.0,0.00019287,2]
[373460752,1753015855654,-724.32,0.00019287,2]
[373460753,1753015855664,-480.0,0.00019287,2]
[373460754,1753015855674,-632.39,0.00019287,2]
[373460755,1753015855684,-480.0,0.00019287,2]
[373460756,1753015855694,-480.0,0.00019287,2]
[373460757,1753015855705,-480.0,0.00019287,2]
[373460758,1753015855715,-963.8,0.00019287,2]
[373460759,1753015855725,-331.34,0.00019287,2]
[373460760,1753015855735,-480.0,0.00019287,2]
[373460761,1753015855744,-480.0,0.00019287,2]
[373460762,1753015855755,-555.06,0.00019287,2]
[373460763,1753015855764,-480.0,0.00019287,2]
[373460764,1753015855775,-480.0,0.00019287,2]
[373460765,1753015855785,-480.0,0.00019287,2]
[373460766,1753015855795,-480.0,0.00019287,2]
[373460767,1753015855804,-937.35,0.00019287,2]
[373460768,1753015855815,-712.01,0.00019287,2]
[373460769,1753015855825,-480.0,0.00019287,2]
[373460770,1753015855835,-480.0,0.00019287,2]
[373460771,1753015855845,-499.14,0.00019287,2]
[373460772,1753015855855,-480.0,0.00019287,2]
[373460773,1753015855865,-480.0,0.00019287,2]
[373460774,1753015855875,-306.8,0.00019287,2]
[373460775,1753015855885,-998.33,0.00019287,2]
[373460776,1753015855895,-480.0,0.00019287,2]
[373460777,1753015855904,-1334.91,0.00019287,2]
[373460778,1753015855914,-649.3,0.00019287,2]
[373460779,1753015855924,-480.0,0.00019287,2]
[373460780,1753015855934,-480.0,0.00019287,2]
[373460781,1753015855944,-480.0,0.00019287,2]
[373460782,1753015855954,-480.0,0.00019287,2]
[373460783,1753015855963,-480.0,0.00019287,2]
[373460784,1753015855973,-620.93,0.00019287,2]
[373460785,1753015855983,-480.0,0.00019287,2]
[373460786,1753015855992,-325.46634455,0.00019287,2]
[373460787,1753015856003,-656.63,0.00019287,2]
[373460788,1753015856012,-480.0,0.00019287,2]
[373460789,1753015856022,-480.0,0.00019287,2]
[373460790,1753015856031,-597.52,0.00019287,2]
[373460791,1753015856041,-480.0,0.00019287,2]
[373460792,1753015856051,-763.71,0.00019287,2]
[373460793,1753015856061,-480.0,0.00019287,2]
[373460794,1753015856071,-737.02,0.00019287,2]
[373460795,1753015856080,-480.0,0.00019287,2]
[373460796,1753015856090,-706.52,0.00019287,2]
[373460797,1753015856100,-718.68,0.00019287,2]
[373460798,1753015856110,-480.0,0.00019287,2]
[373460799,1753015856120,-1268.97,0.00019287,2]
[373460800,1753015856130,-1193.8,0.00019287,2]
[373460801,1753015856140,-575.27,0.00019287,2]
[373460802,1753015856150,-1295.39,0.00019287,2]
[373460803,1753015856160,-740.27,0.00019287,2]
[373460804,1753015856169,-480.0,0.00019287,2]
[373460805,1753015856179,-480.0,0.00019287,2]
[373460806,1753015856189,-480.0,0.00019287,2]
[373460807,1753015856199,-480.0,0.00019287,2]
[373460808,1753015856209,-480.0,0.00019287,2]
[373460809,1753015856220,-480.0,0.00019287,2]
[373460810,1753015856234,-480.0,0.00019287,2]
[373460811,1753015856244,-480.0,0.00019287,2]
[373460812,1753015856254,-480.0,0.00019287,2]
[373460813,1753015856264,-480.0,0.00019287,2]
[373460814,1753015856276,-440.0,0.00019287,2]
[373460815,1753015856285,-480.0,0.00019287,2]
[373460816,1753015856296,-244.66793819,0.00019287,2]
[373460817,1753015856306,-480.0,0.00019287,2]
[373460818,1753015856317,-1000.0,0.00019287,2]
[373460819,1753015856327,-663.35,0.00019287,2]
[373460820,1753015856336,-480.0,0.00019287,2]
[373460821,1753015856346,-440.0,0.00019287,2]
[373460822,1753015856356,-430.67085843,0.00019287,2]
[373460823,1753015856365,-480.0,0.00019287,2]
[373460824,1753015856375,-480.0,0.00019287,2]
[373460825,1753015856385,-444.72435657,0.00019287,2]
[373460826,1753015856395,-480.0,0.00019287,2]
[373460827,1753015856404,-480.0,0.00019287,2]
[373460828,1753015856414,-480.0,0.00019287,2]
[373460829,1753015856424,-480.0,0.00019287,2]
[373460830,1753015856434,-480.0,0.00019287,2]
[373460831,1753015856444,-480.0,0.00019287,2]
[373460832,1753015856453,-480.0,0.00019287,2]
[373460833,1753015856463,-480.0,0.00019287,2]
[373460834,1753015856473,-480.0,0.00019287,2]
[373460835,1753015856483,-1322.39,0.00019287,2]
[373460836,1753015856492,-849.5,0.00019287,2]
[373460837,1753015856502,-480.0,0.00019287,2]
[373460838,1753015856512,-480.0,0.00019287,2]
[373460839,1753015856522,-480.0,0.00019287,2]
[373460840,1753015856532,-958.65,0.00019287,2]
[373460841,1753015856542,-376.71348892,0.00019287,2]
[373460842,1753015856551,-1347.29,0.00019287,2]
[373460843,1753015856562,-480.0,0.00019287,2]
[373460844,1753015856572,-480.0,0.00019287,2]
[373460845,1753015856582,-480.0,0.00019287,2]
[373460846,1753015856591,-480.0,0.00019287,2]
[373460847,1753015856601,-479.0,0.00019287,2]
[373460848,1753015856611,-480.0,0.00019287,2]
[373460849,1753015856621,-480.0,0.00019287,2]
[373460850,1753015856631,-922.27,0.00019287,2]
[373460851,1753015856640,-480.0,0.00019287,2]
[373460852,1753015856650,-550.72902327,0.00019287,2]
[373460853,1753015856660,-480.0,0.00019287,2]
[373460854,1753015856670,-480.0,0.00019287,2]
[373460855,1753015856680,-480.0,0.00019287,2]
[373460856,1753015856690,-480.0,0.00019287,2]
[373460857,1753015856699,-518.31,0.00019287,2]
[373460858,1753015856709,-775.15,0.00019287,2]
[373460859,1753015856719,-480.0,0.00019287,2]
[373460860,1753015856728,-738.86,0.00019287,2]
[373460861,1753015856738,-480.0,0.00019287,2]
[373460862,1753015856748,-480.0,0.00019287,2]
[373460863,1753015856758,-480.0,0.00019287,2]
[373460864,1753015856768,-480.0,0.00019287,2]
[373460865,1753015856778,-480.0,0.00019287,2]
[373460866,1753015856788,-825.9,0.00019287,2]
[373460867,1753015856799,-480.0,0.00019287,2]
[373460868,1753015856809,-480.0,0.00019287,2]
[373460869,1753015856819,-480.0,0.00019287,2]
[373460870,1753015856828,-584.05,0.00019287,2]
[373460871,1753015856839,-307.6,0.00019287,2]
[373460872,1753015856848,-480.0,0.00019287,2]
[373460873,1753015856858,-480.0,0.00019287,2]
[373460874,1753015856868,-480.0,0.00019287,2]
[373460875,1753015856878,-480.0,0.00019287,2]
[373460876,1753015856887,-480.0,0.00019287,2]
[373460877,1753015856897,-480.0,0.00019287,2]
[373460878,1753015856907,-480.0,0.00019287,2]
[373460879,1753015856916,-462.43,0.00019287,2]
[373460880,1753015856927,-480.0,0.00019287,2]
[373460881,1753015856936,-480.0,0.00019287,2]
[373460882,1753015856946,-480.0,0.00019287,2]
[373460883,1753015856957,-1562.24,0.00019287,2]
[373460884,1753015856967,-480.0,0.00019287,2]
[373460885,1753015856977,-480.0,0.00019287,2]
[373460886,1753015856987,-480.0,0.00019287,2]
[373460887,1753015856997,-1088.3,0.00019287,2]
[373460888,1753015857007,-480.0,0.00019287,2]
[373460889,1753015857017,-480.0,0.00019287,2]
[373460890,1753015857026,-480.0,0.00019287,2]
[373460891,1753015857036,-480.0,0.00019287,2]
[373460892,1753015857046,-480.0,0.00019287,2]
[373460893,1753015857055,-480.0,0.00019287,2]
[373460894,1753015857065,-480.0,0.00019287,2]
[373460895,1753015857075,-480.0,0.00019287,2]
[373460896,1753015857084,-480.0,0.00019287,2]
[373460897,1753015857094,-480.0,0.00019287,2]
[373460898,1753015857104,-440.0,0.00019287,2]
[373460899,1753015857114,-480.0,0.00019287,2]
[373460900,1753015857123,-480.0,0.00019287,2]
[373460901,1753015857133,-480.0,0.00019287,2]
[373460902,1753015857142,-3020.78,0.00019287,2]
[373460903,1753015857154,-480.0,0.00019287,2]
[373460904,1753015857163,-480.0,0.00019287,2]
[373460905,1753015857173,-1663.0,0.00019287,2]
[373460906,1753015857183,-8737.93,0.00019287,2]
[373460907,1753015857194,-480.0,0.00019287,2]
[373460908,1753015857204,-716.51,0.00019287,2]
[373460909,1753015857214,-480.0,0.00019287,2]
[373460910,1753015857231,-480.0,0.00019287,2]
[373460911,1753015857241,-480.0,0.00019287,2]
[373460912,1753015857251,-501.65,0.00019287,2]
[373460913,1753015857262,-480.0,0.00019287,2]
[373460914,1753015857274,-480.0,0.00019287,2]
[373460915,1753015857284,-480.0,0.00019287,2]
[373460916,1753015857295,-480.0,0.00019287,2]
[373460917,1753015857304,-480.0,0.00019287,2]
[373460918,1753015857316,-440.0,0.00019287,2]
[373460919,1753015857327,-480.0,0.00019287,2]
[373460920,1753015857337,-480.0,0.00019287,2]
[373460921,1753015857349,-480.0,0.00019287,2]
[373460922,1753015857359,-1151.8,0.00019287,2]
[373460923,1753015857370,-1826.48,0.00019287,2]
[373460924,1753015857382,-480.0,0.00019287,2]
[373460925,1753015857392,-480.0,0.00019287,2]
[373460926,1753015857403,-480.0,0.00019287,2]
[373460927,1753015857413,-543.96,0.00019287,2]
[373460928,1753015857425,-991.14,0.00019287,2]
[373460929,1753015857436,-1543.29,0.00019287,2]
[373460930,1753015857447,-480.0,0.00019287,2]
[373460931,1753015857457,-1083.692683,0.00019287,2]
[373460932,1753015857468,-480.0,0.00019287,2]
[373460933,1753015857479,-1150.9,0.00019287,2]
[373460934,1753015857490,-1098.146936,0.00019287,2]
[373460935,1753015857501,-579.46,0.00019287,2]
[373460936,1753015857511,-480.0,0.00019287,2]
[373460937,1753015857523,-769.41,0.00019287,2]
[373460938,1753015857533,-480.0,0.00019287,2]
[373460939,1753015857543,-810.62,0.00019287,2]
[373460940,1753015857553,-480.0,0.00019287,2]
[373460941,1753015857563,-480.0,0.00019287,2]
[373460942,1753015857573,-1534.64,0.00019287,2]
[373460943,1753015857584,-480.0,0.00019287,2]
[373460944,1753015857594,-480.0,0.00019287,2]
[373460945,1753015857604,-1270.3,0.00019287,2]
[373460946,1753015857614,-480.0,0.00019287,2]
[373460947,1753015857624,-480.0,0.00019287,2]
[373460948,1753015857634,-480.0,0.00019287,2]
[373460949,1753015857644,-480.0,0.00019287,2]
[373460950,1753015857654,-1216.98,0.00019287,2]
[373460951,1753015857664,-480.0,0.00019287,2]
[373460952,1753015857674,-480.0,0.00019287,2]
[373460953,1753015857907,-499.1,0.00019287,2]